lending/lending_fUSD_20250121
["ID","MTS","AMOUNT","RATE_DAILY","PERIOD"]
[349820717,1737451844560,-500.0,0.00019451,2]
[349820718,1737451844569,-519.10921818,0.00019451,2]
[349820719,1737451844579,-247.58484209,0.00019451,2]
[349820720,1737451844589,-500.0,0.00019451,2]
[349820721,1737451844598,-500.0,0.00019451,2]
[349820722,1737451844607,-500.0,0.00019451,2]
[349820723,1737451844617,-508.10586194,0.00019451,2]
[349820724,1737451844627,-500.0,0.00019451,2]
[349820725,1737451844636,-500.0,0.00019451,2]
[349820726,1737451844645,-500.0,0.00019451,2]
[349820727,1737451844655,-288.95868636,0.00019451,2]
[349820728,1737451844664,-500.0,0.00019451,2]
[349820729,1737451844674,-503.94020772,0.00019451,2]
[349820730,1737451844683,-500.0,0.00019451,2]
[349820731,1737451844693,-500.0,0.00019451,2]
[349820732,1737451844702,-504.80669321,0.00019451,2]
[349820733,1737451844711,-500.0,0.00019451,2]
[349820734,1737451844721,-500.0,0.00019451,2]
[349820735,1737451844730,-500.0,0.00019451,2]
[349820736,1737451844740,-500.0,0.00019451,2]
[349820737,1737451844750,-500.0,0.00019451,2]
[349820738,1737451844759,-500.0,0.00019451,2]
[349820739,1737451844768,-378.65703469,0.00019451,2]
[349820740,1737451844778,-500.0,0.00019451,2]
[349820741,1737451844787,-500.0,0.00019451,2]
[349820742,1737451844927,-500.0,0.00019451,2]
[349820743,1737451844937,-500.0,0.00019451,2]
[349820744,1737451844946,-500.0,0.00019451,2]
[349820745,1737451844955,-500.0,0.00019451,2]
[349820746,1737451844966,-637.34628755,0.00019451,2]
[349820747,1737451844975,-500.0,0.00019451,2]
[349820748,1737451844985,-443.14816538,0.00019451,2]
[349820749,1737451844995,-500.0,0.00019451,2]
[349820750,1737451845006,-500.0,0.00019451,2]
[349820751,1737451845016,-505.66452597,0.00019451,2]
[349820752,1737451845025,-500.0,0.00019451,2]
[349820753,1737451845036,-500.0,0.00019451,2]
[349820754,1737451845047,-500.0,0.00019451,2]
[349820755,1737451845057,-568.81,0.00019451,2]
[349820756,1737451845066,-500.0,0.00019451,2]
[349820757,1737451845076,-500.0,0.00019451,2]
[349820758,1737451845085,-500.0,0.00019451,2]
[349820759,1737451845095,-500.0,0.00019451,2]
[349820760,1737451845105,-500.0,0.00019451,2]
[349820761,1737451845115,-500.0,0.00019451,2]
[349820762,1737451845125,-500.0,0.00019451,2]
[349820763,1737451845134,-500.0,0.00019451,2]
[349820764,1737451845143,-500.0,0.00019451,2]
[349820765,1737451845153,-500.0,0.00019451,2]
[349820766,1737451845163,-500.0,0.00019451,2]
[349820767,1737451845173,-500.0,0.00019451,2]
[349820768,1737451845183,-500.0,0.00019451,2]
[349820769,1737451845193,-1180.87,0.00019451,2]
[349820770,1737451845202,-500.0,0.00019451,2]
[349820771,1737451845212,-500.0,0.00019451,2]
[349820772,1737451845221,-301.59171114,0.00019451,2]
[349820773,1737451845231,-500.0,0.00019451,2]
[349820774,1737451845241,-500.0,0.00019451,2]
[349820775,1737451845252,-500.0,0.00019451,2]
[349820776,1737451845262,-500.0,0.00019451,2]
[349820777,1737451845271,-500.0,0.00019451,2]
[349820778,1737451845280,-500.0,0.00019451,2]
[349820779,1737451845290,-1000.0,0.00019451,2]
[349820780,1737451845299,-500.0,0.00019451,2]
[349820781,1737451845308,-1042.35,0.00019451,2]
[349820782,1737451845317,-500.0,0.00019451,2]
[349820783,1737451845327,-500.0,0.00019451,2]
[349820784,1737451845336,-500.0,0.00019451,2]
[349820785,1737451845345,-500.0,0.00019451,2]
[349820786,1737451845355,-1431.03,0.00019451,2]
[349820787,1737451845365,-500.0,0.00019451,2]
[349820788,1737451845375,-500.0,0.00019451,2]
[349820789,1737451845388,-201.34399345,0.00019451,2]
[349820790,1737451845398,-504.37012111,0.00019451,2]
[349820791,1737451845408,-500.0,0.00019451,2]
[349820792,1737451845419,-500.0,0.00019451,2]
[349820793,1737451845428,-537.01212071,0.00019451,2]
[349820794,1737451845438,-500.0,0.00019451,2]
[349820795,1737451845448,-500.0,0.00019451,2]
[349820796,1737451845459,-502.62422359,0.00019451,2]
[349820797,1737451845468,-500.0,0.00019451,2]
[349820798,1737451845478,-500.0,0.00019451,2]
[349820799,1737451845487,-500.0,0.00019451,2]
[349820800,1737451845498,-500.0,0.00019451,2]
[349820801,1737451845507,-500.0,0.00019451,2]
[349820802,1737451845516,-500.0,0.00019451,2]
[349820803,1737451845527,-500.0,0.00019451,2]
[349820804,1737451845536,-500.0,0.00019451,2]
[349820805,1737451845546,-500.0,0.00019451,2]
[349820806,1737451845555,-500.0,0.00019451,2]
[349820807,1737451845563,-500.0,0.00019451,2]
[349820808,1737451845574,-430.98070515,0.00019451,2]
[349820809,1737451845584,-500.0,0.00019451,2]
[349820810,1737451845594,-500.0,0.00019451,2]
[349820811,1737451845605,-500.0,0.00019451,2]
[349820812,1737451845615,-501.43465911,0.00019451,2]
[349820813,1737451845624,-500.0,0.00019451,2]
[349820814,1737451845634,-500.0,0.00019451,2]
[349820815,1737451845643,-500.0,0.00019451,2]
[349820816,1737451845653,-500.0,0.00019451,2]
[349820817,1737451845663,-500.0,0.00019451,2]
[349820818,1737451845673,-500.0,0.00019451,2]
[349820819,1737451845682,-300.0,0.00019451,2]
[349820820,1737451845692,-714.81,0.00019451,2]
[349820822,1737451845702,-500.0,0.00019452,2]
[349820823,1737451845711,-500.0,0.00019452,2]
[349820824,1737451845721,-500.0,0.00019452,2]
[349820825,1737451845730,-500.0,0.00019452,2]
[349820826,1737451845740,-500.0,0.00019452,2]
[349820827,1737451845750,-500.0,0.00019452,2]
[349820830,1737451845760,-207.88012706,0.00019452,2]
[349820832,1737451845769,-500.0,0.00019452,2]
[349820833,1737451845778,-500.0,0.00019452,2]
[349820834,1737451845788,-500.0,0.00019452,2]
[349820835,1737451845798,-500.0,0.00019452,2]
[349820837,1737451845808,-500.0,0.00019452,2]
[349820839,1737451845818,-500.0,0.00019452,2]
[349820841,1737451845827,-1366.89,0.00019452,2]
[349820844,1737451845837,-500.0,0.00019452,2]
[349820848,1737451845847,-500.0,0.00019452,2]
[349820851,1737451845857,-643.51,0.00019452,2]
[349820853,1737451845866,-500.0,0.00019452,2]
[349820855,1737451845876,-500.0,0.00019452,2]
[349820856,1737451845886,-509.42798266,0.00019452,2]
[349820857,1737451845896,-538.47335286,0.00019452,2]
[349820858,1737451845906,-500.0,0.00019452,2]
[349820859,1737451845916,-515.77477692,0.00019452,2]
[349820860,1737451845925,-500.0,0.00019452,2]
[349820861,1737451845935,-500.0,0.00019452,2]
[349820862,1737451845944,-500.0,0.00019452,2]
[349820863,1737451845954,-511.37629887,0.00019452,2]
[349820864,1737451845964,-500.0,0.00019452,2]
[349820865,1737451845973,-500.0,0.00019452,2]
[349820866,1737451845984,-500.0,0.00019452,2]
[349820867,1737451845994,-500.0,0.00019452,2]
[349820868,1737451846005,-500.0,0.00019452,2]
[349820869,1737451846014,-500.0,0.00019452,2]
[349820870,1737451846024,-520.18362216,0.00019452,2]
[349820871,1737451846037,-336.26996785,0.00019452,2]
[349820872,1737451846047,-500.0,0.00019452,2]
[349820873,1737451846057,-500.0,0.00019452,2]
[349820874,1737451846067,-610.59339231,0.00019452,2]
[349820875,1737451846078,-500.0,0.00019452,2]
[349820876,1737451846088,-500.0,0.00019452,2]
[349820877,1737451846098,-500.0,0.00019452,2]
[349820878,1737451846107,-500.0,0.00019452,2]
[349820879,1737451846117,-500.0,0.00019452,2]
[349820880,1737451846127,-500.0,0.00019452,2]
[349820881,1737451846136,-500.0,0.00019452,2]
[349820882,1737451846146,-440.0,0.00019452,2]
[349820883,1737451846155,-500.0,0.00019452,2]
[349820884,1737451846165,-500.0,0.00019452,2]
[349820885,1737451846175,-500.0,0.00019452,2]
[349820886,1737451846185,-500.0,0.00019452,2]
[349820887,1737451846196,-226.06831288,0.00019452,2]
[349820888,1737451846205,-500.0,0.00019452,2]
[349820889,1737451846216,-500.0,0.00019452,2]
[349820890,1737451846226,-500.0,0.00019452,2]
[349820891,1737451846236,-500.0,0.00019452,2]
[349820892,1737451846246,-500.0,0.00019452,2]
[349820893,1737451846256,-500.0,0.00019452,2]
[349820894,1737451846265,-500.0,0.00019452,2]
[349820895,1737451846275,-500.0,0.00019452,2]
[349820896,1737451846284,-500.0,0.00019452,2]
[349820897,1737451846295,-500.0,0.00019452,2]
[349820898,1737451846304,-500.0,0.00019452,2]
[349820899,1737451846314,-500.0,0.00019452,2]
[349820900,1737451846324,-319.36072678,0.00019452,2]
[349820901,1737451846333,-500.0,0.00019452,2]
[349820902,1737451846342,-209.41973395,0.00019452,2]
[349820903,1737451846352,-500.0,0.00019452,2]
[349820904,1737451846361,-500.0,0.00019452,2]
[349820905,1737451846372,-500.0,0.00019452,2]
[349820906,1737451846384,-500.0,0.00019452,2]
[349820907,1737451846394,-500.0,0.00019452,2]
[349820908,1737451846403,-500.0,0.00019452,2]
[349820909,1737451846415,-1442.47,0.00019452,2]
[349820910,1737451846425,-1618.9,0.00019452,2]
[349820911,1737451846434,-784.62,0.00019452,2]
[349820912,1737451846443,-1181.46,0.00019452,2]
[349820913,1737451846455,-700.2,0.00019452,2]
[349820914,1737451846464,-500.0,0.00019452,2]
[349820915,1737451846474,-500.0,0.00019452,2]
[349820916,1737451846484,-864.13,0.00019452,2]
[349820917,1737451846494,-1046.8,0.00019452,2]
[349820918,1737451846505,-2225.67,0.00019452,2]
[349820919,1737451846515,-997.49,0.00019452,2]
[349820920,1737451846524,-500.0,0.00019452,2]
[349820921,1737451846534,-500.0,0.00019452,2]
[349820922,1737451846543,-643.01,0.00019452,2]
[349820923,1737451846553,-500.0,0.00019452,2]
[349820924,1737451846563,-1363.79,0.00019452,2]
[349820925,1737451846573,-500.0,0.00019452,2]
[349820926,1737451846582,-968.6,0.00019452,2]
[349820927,1737451846591,-731.54,0.00019452,2]
[349820928,1737451846600,-671.55,0.00019452,2]
[349820929,1737451846609,-500.0,0.00019452,2]
[349820930,1737451846619,-1512.89,0.00019452,2]
[349820931,1737451846628,-1824.0,0.00019452,2]
[349820932,1737451846638,-500.0,0.00019452,2]
[349820933,1737451846646,-500.0,0.00019452,2]
[349820934,1737451846656,-500.0,0.00019452,2]
[349820935,1737451846666,-500.0,0.00019452,2]
[349820936,1737451846676,-720.36,0.00019452,2]
[349820937,1737451846686,-500.0,0.00019452,2]
[349820938,1737451846696,-500.0,0.00019452,2]
[349820939,1737451846706,-500.0,0.00019452,2]
[349820940,1737451846716,-500.0,0.00019452,2]
[349820941,1737451846726,-500.0,0.00019452,2]
[349820942,1737451846735,-500.0,0.00019452,2]
[349820943,1737451846744,-500.0,0.00019452,2]
[349820944,1737451846756,-1598.88,0.00019452,2]
[349820945,1737451846766,-1625.7,0.00019452,2]
[349820946,1737451846775,-500.0,0.00019452,2]
[349820947,1737451846784,-11076.26,0.00019452,2]
[349820948,1737451846828,-500.0,0.00019452,2]
[349820949,1737451846837,-740.0369452,0.000195,2]
[349820950,1737451846846,-577.59154716,0.00019583,2]
[349820951,1737451846856,-1943.62485041,0.0001961,2]
[349820952,1737451846866,-405.71652632,0.00019647,2]
[349820953,1737451846875,-175.3,0.00019655,2]
[349820954,1737451846886,-4195.95519022,0.00019688,2]
[349820955,1737451846900,-500.0,0.00019724,2]
[349820956,1737451846910,-500.0,0.00019724,2]
[349820957,1737451846920,-500.0,0.00019724,2]
[349820958,1737451846932,-647.89,0.00019724,2]
[349820959,1737451846942,-568.28,0.00019724,2]
[349820960,1737451846952,-893.13,0.00019724,2]
[349820961,1737451846961,-500.0,0.00019724,2]
[349820962,1737451846972,-500.0,0.00019724,2]
[349820963,1737451846983,-500.0,0.00019724,2]
[349820964,1737451846993,-500.0,0.00019724,2]
[349820965,1737451847007,-500.0,0.00019724,2]
[349820966,1737451847018,-500.0,0.00019724,2]
[349820967,1737451847028,-500.0,0.00019724,2]
[349820968,1737451847039,-500.0,0.00019724,2]
[349820969,1737451847050,-500.0,0.00019724,2]
[349820970,1737451847060,-500.0,0.00019724,2]
[349820971,1737451847070,-500.0,0.00019724,2]
[349820972,1737451847080,-500.0,0.00019724,2]
[349820973,1737451847090,-500.19782587,0.00019724,2]
[349820974,1737451847100,-500.0,0.00019724,2]
[349820975,1737451847111,-500.0,0.00019724,2]
[349820976,1737451847121,-500.0,0.00019724,2]
[349820977,1737451847131,-500.0,0.00019724,2]
[349820978,1737451847141,-500.0,0.00019724,2]
[349820979,1737451847150,-500.0,0.00019724,2]
[349820980,1737451847160,-529.22238899,0.00019724,2]
[349820981,1737451847170,-500.0,0.00019724,2]
[349820982,1737451847180,-500.0,0.00019724,2]
[349820983,1737451847189,-618.51,0.00019724,2]
[349820984,1737451847199,-500.0,0.00019724,2]
[349820985,1737451847209,-500.0,0.00019724,2]
[349820986,1737451847219,-500.0,0.00019724,2]
[349820987,1737451847228,-500.0,0.00019724,2]
[349820988,1737451847238,-500.0,0.00019724,2]
[349820989,1737451847248,-500.0,0.00019724,2]
[349820990,1737451847258,-500.0,0.00019724,2]
[349820991,1737451847268,-500.0,0.00019724,2]
[349820992,1737451847278,-500.0,0.00019724,2]
[349820993,1737451847287,-500.0,0.00019724,2]
[349820994,1737451847297,-500.0,0.00019724,2]
[349820995,1737451847307,-500.0,0.00019724,2]
[349820996,1737451847316,-500.0,0.00019724,2]
[349820997,1737451847326,-500.0,0.00019724,2]
[349820998,1737451847337,-500.0,0.00019724,2]
[349820999,1737451847346,-500.0,0.00019724,2]
[349821000,1737451847356,-500.0,0.00019724,2]
[349821001,1737451847367,-500.0,0.00019724,2]
[349821002,1737451847378,-500.0,0.00019724,2]
[349821003,1737451847387,-500.0,0.00019724,2]
[349821004,1737451847396,-500.0,0.00019724,2]
[349821005,1737451847406,-500.0,0.00019724,2]
[349821006,1737451847417,-500.0,0.00019724,2]
[349821007,1737451847427,-550.69,0.00019724,2]
[349821008,1737451847438,-525.13,0.00019724,2]
[349821009,1737451847450,-521.1,0.00019724,2]
[349821010,1737451847460,-797.02,0.00019724,2]
[349821011,1737451847469,-556.55,0.00019724,2]
[349821012,1737451847478,-1866.84,0.00019724,2]
[349821013,1737451847488,-2519.65,0.00019724,2]
[349821014,1737451847500,-548.24,0.00019724,2]
[349821015,1737451847510,-777.32,0.00019724,2]
[349821016,1737451847520,-500.0,0.00019724,2]
[349821017,1737451847529,-500.0,0.00019724,2]
[349821018,1737451847539,-1125.78,0.00019724,2]
[349821019,1737451847548,-155.553152,0.00019724,2]
[349821020,1737451847558,-500.0,0.00019724,2]
[349821021,1737451847568,-500.0,0.00019724,2]
[349821022,1737451847577,-500.0,0.00019724,2]
[349821023,1737451847587,-788.4,0.00019724,2]
[349821024,1737451847597,-500.0,0.00019724,2]
[349821025,1737451847606,-1354.69,0.00019724,2]
[349821026,1737451847616,-500.0,0.00019724,2]
[349821027,1737451847626,-500.0,0.00019724,2]
[349821028,1737451847635,-500.0,0.00019724,2]
[349821029,1737451847645,-500.0,0.00019724,2]
[349821030,1737451847655,-500.0,0.00019724,2]
[349821031,1737451847664,-500.0,0.00019724,2]
[349821032,1737451847674,-500.0,0.00019724,2]
[349821033,1737451847684,-500.0,0.00019724,2]
[349821034,1737451847694,-844.31,0.00019724,2]
[349821035,1737451847703,-208.822323,0.00019724,2]
[349821036,1737451847712,-1391.48,0.00019724,2]
[349821037,1737451847722,-1002.55,0.00019724,2]
[349821038,1737451847732,-500.0,0.00019724,2]
[349821039,1737451847741,-513.85759688,0.00019724,2]
[349821040,1737451847751,-500.0,0.00019724,2]
[349821041,1737451847761,-403.33739336,0.00019724,2]
[349821042,1737451847770,-500.0,0.00019724,2]
[349821043,1737451847780,-640.71,0.00019724,2]
[349821044,1737451847789,-500.0,0.00019724,2]
[349821045,1737451847798,-500.0,0.00019724,2]
[349821046,1737451847808,-500.0,0.00019724,2]
[349821047,1737451847817,-731.04,0.00019724,2]
[349821048,1737451847827,-500.0,0.00019724,2]
[349821049,1737451847836,-500.0,0.00019724,2]
[349821050,1737451847847,-500.0,0.00019724,2]
[349821051,1737451847857,-500.0,0.00019724,2]
[349821052,1737451847867,-714.65,0.00019724,2]
[349821053,1737451847878,-500.0,0.00019724,2]
[349821054,1737451847888,-505.72,0.00019724,2]
[349821055,1737451847898,-500.0,0.00019724,2]
[349821056,1737451847909,-1332.26,0.00019724,2]
[349821057,1737451847920,-500.0,0.00019724,2]
[349821058,1737451847931,-500.0,0.00019724,2]
[349821059,1737451847941,-500.0,0.00019724,2]
[349821060,1737451847951,-1133.86,0.00019724,2]
[349821061,1737451847962,-500.0,0.00019724,2]
[349821062,1737451847971,-500.0,0.00019724,2]
[349821063,1737451847981,-623.68,0.00019724,2]
[349821064,1737451847992,-500.0,0.00019724,2]
[349821065,1737451848004,-1398.4,0.00019724,2]
[349821066,1737451848014,-500.0,0.00019724,2]
[349821067,1737451848024,-500.0,0.00019724,2]
[349821068,1737451848035,-1012.63,0.00019724,2]
[349821069,1737451848046,-500.0,0.00019724,2]
[349821070,1737451848056,-500.0,0.00019724,2]
[349821071,1737451848067,-500.0,0.00019724,2]
[349821072,1737451848078,-1816.63,0.00019724,2]
[349821073,1737451848088,-500.0,0.00019724,2]
[349821074,1737451848099,-2242.61,0.00019724,2]
[349821075,1737451848110,-367.16816725,0.00019724,2]
[349821076,1737451848122,-500.0,0.00019724,2]
[349821077,1737451848133,-500.0,0.00019724,2]
[349821078,1737451848143,-537.32,0.00019724,2]
[349821079,1737451848153,-370.97750126,0.00019724,2]
[349821080,1737451848168,-500.0,0.00019724,2]
[349821081,1737451848178,-500.0,0.00019724,2]
[349821082,1737451848188,-500.0,0.00019724,2]
[349821083,1737451848198,-598.63,0.00019724,2]
[349821084,1737451848208,-819.36,0.00019724,2]
[349821085,1737451848218,-500.0,0.00019724,2]
[349821086,1737451848228,-500.0,0.00019724,2]
[349821087,1737451848239,-878.52,0.00019724,2]
[349821088,1737451848250,-500.0,0.00019724,2]
[349821089,1737451848261,-500.0,0.00019724,2]
[349821090,1737451848271,-500.0,0.00019724,2]
[349821091,1737451848281,-865.06,0.00019724,2]
[349821092,1737451848291,-2333.67,0.00019724,2]
[349821093,1737451848302,-500.0,0.00019724,2]
[349821094,1737451848313,-1054.66,0.00019724,2]
[349821095,1737451848324,-500.0,0.00019724,2]
[349821096,1737451848334,-639.03,0.00019724,2]
[349821097,1737451848344,-1659.51,0.00019724,2]
[349821098,1737451848354,-500.0,0.00019724,2]
[349821099,1737451848363,-788.63,0.00019724,2]
[349821100,1737451848375,-500.0,0.00019724,2]
[349821101,1737451848388,-2681.81,0.00019724,2]
[349821102,1737451848398,-500.0,0.00019724,2]
[349821103,1737451848411,-500.0,0.00019724,2]
[349821104,1737451848422,-500.0,0.00019724,2]
[349821105,1737451848432,-500.0,0.00019724,2]
[349821106,1737451848443,-500.0,0.00019724,2]
[349821107,1737451848453,-792.79,0.00019724,2]
[349821108,1737451848464,-500.0,0.00019724,2]
[349821109,1737451848474,-500.0,0.00019724,2]
[349821110,1737451848484,-607.89,0.00019724,2]
[349821111,1737451848494,-500.0,0.00019724,2]
[349821112,1737451848505,-809.0,0.00019724,2]
[349821113,1737451848515,-554.41233393,0.00019724,2]
[349821114,1737451848525,-630.14,0.00019724,2]
[349821115,1737451848535,-500.0,0.00019724,2]
[349821116,1737451848546,-500.0,0.00019724,2]
[349821117,1737451848556,-1650.93,0.00019724,2]
[349821118,1737451848567,-1908.06,0.00019724,2]
[349821119,1737451848577,-500.0,0.00019724,2]
[349821120,1737451848588,-500.0,0.00019724,2]
[349821121,1737451848598,-1008.63,0.00019724,2]
[349821122,1737451848609,-500.0,0.00019724,2]
[349821123,1737451848619,-609.84,0.00019724,2]
[349821124,1737451848630,-2139.5,0.00019724,2]
[349821125,1737451848640,-1503.49,0.00019724,2]
[349821126,1737451848650,-1375.23,0.00019724,2]
[349821127,1737451848660,-500.0,0.00019724,2]
[349821128,1737451848671,-500.0,0.00019724,2]
[349821129,1737451848681,-900.29,0.00019724,2]
[349821130,1737451848691,-151.54188646,0.00019725,2]
[349821131,1737451848701,-500.0,0.00019725,2]
[349821132,1737451848711,-500.0,0.00019725,2]
[349821133,1737451848721,-500.0,0.00019725,2]
[349821134,1737451848732,-500.0,0.00019725,2]
[349821135,1737451848742,-500.0,0.00019725,2]
[349821136,1737451848753,-500.0,0.00019725,2]
[349821137,1737451848763,-500.0,0.00019725,2]
[349821138,1737451848773,-500.0,0.00019725,2]
[349821139,1737451848783,-500.0,0.00019725,2]
[349821140,1737451848794,-500.0,0.00019725,2]
[349821141,1737451848804,-280.19492437,0.00019725,2]
[349821142,1737451848813,-500.0,0.00019725,2]
[349821143,1737451848823,-687.44,0.00019725,2]
[349821144,1737451848833,-500.0,0.00019725,2]
[349821145,1737451848843,-500.0,0.00019725,2]
[349821146,1737451848853,-504.80205826,0.00019725,2]
[349821147,1737451848863,-500.0,0.00019725,2]
[349821148,1737451848873,-500.0,0.00019725,2]
[349821149,1737451848884,-500.0,0.00019725,2]
[349821150,1737451848893,-565.39,0.00019725,2]
[349821151,1737451848903,-502.6024351,0.00019725,2]
[349821152,1737451848914,-500.0,0.00019725,2]
[349821153,1737451848924,-259.47837126,0.00019725,2]
[349821154,1737451848934,-500.0,0.00019725,2]
[349821155,1737451848945,-512.59149872,0.00019725,2]
[349821156,1737451848955,-500.0,0.00019725,2]
[349821157,1737451848966,-500.0,0.00019725,2]
[349821158,1737451848976,-500.0,0.00019725,2]
[349821159,1737451848987,-500.0,0.00019725,2]
[349821160,1737451848997,-984.73,0.00019725,2]
[349821161,1737451849010,-554.98285251,0.00019725,2]
[349821162,1737451849020,-500.0,0.00019725,2]
[349821163,1737451849030,-703.52,0.00019725,2]
[349821164,1737451849042,-500.0,0.00019725,2]
[349821165,1737451849053,-500.0,0.00019725,2]
[349821166,1737451849064,-500.0,0.00019725,2]
[349821167,1737451849074,-500.0,0.00019725,2]
[349821168,1737451849084,-500.0,0.00019725,2]
[349821169,1737451849094,-500.0,0.00019725,2]
[349821170,1737451849104,-500.0,0.00019725,2]
[349821171,1737451849115,-500.0,0.00019725,2]
[349821172,1737451849125,-500.0,0.00019725,2]
[349821173,1737451849135,-500.0,0.00019725,2]
[349821174,1737451849146,-500.0,0.00019725,2]
[349821175,1737451849156,-500.0,0.00019725,2]
[349821176,1737451849166,-648.42,0.00019725,2]
[349821177,1737451849177,-500.0,0.00019725,2]
[349821178,1737451849187,-500.0,0.00019725,2]
[349821179,1737451849197,-1458.78,0.00019725,2]
[349821180,1737451849207,-500.0,0.00019725,2]
[349821181,1737451849216,-500.0,0.00019725,2]
[349821182,1737451849226,-500.0,0.00019725,2]
[349821183,1737451849236,-500.0,0.00019725,2]
[349821184,1737451849247,-500.0,0.00019725,2]
[349821185,1737451849258,-527.87054714,0.00019725,2]
[349821186,1737451849268,-500.0,0.00019725,2]
[349821187,1737451849278,-500.0,0.00019725,2]
[349821188,1737451849288,-500.0,0.00019725,2]
[349821189,1737451849297,-500.0,0.00019725,2]
[349821190,1737451849307,-500.0,0.00019725,2]
[349821191,1737451849317,-500.0,0.00019725,2]
[349821192,1737451849327,-500.0,0.00019725,2]
[349821193,1737451849337,-500.0,0.00019725,2]
[349821194,1737451849348,-500.0,0.00019725,2]
[349821195,1737451849358,-500.0,0.00019725,2]
[349821196,1737451849368,-500.0,0.00019725,2]
[349821197,1737451849382,-500.0,0.00019725,2]
[349821198,1737451849392,-500.0,0.00019725,2]
[349821199,1737451849402,-500.0,0.00019725,2]
[349821200,1737451849412,-517.83537555,0.00019725,2]
[349821201,1737451849423,-500.0,0.00019725,2]
[349821202,1737451849433,-500.0,0.00019725,2]
[349821203,1737451849443,-500.0,0.00019725,2]
[349821204,1737451849454,-500.0,0.00019725,2]
[349821205,1737451849465,-500.0,0.00019725,2]
[349821206,1737451849475,-500.0,0.00019725,2]
[349821207,1737451849485,-500.0,0.00019725,2]
[349821208,1737451849496,-500.0,0.00019725,2]
[349821209,1737451849508,-500.0,0.00019725,2]
[349821210,1737451849517,-500.0,0.00019725,2]
[349821211,1737451849527,-500.0,0.00019725,2]
[349821212,1737451849538,-500.0,0.00019725,2]
[349821213,1737451849548,-500.0,0.00019725,2]
[349821214,1737451849558,-500.0,0.00019725,2]
[349821215,1737451849568,-568.81,0.00019725,2]
[349821216,1737451849578,-500.0,0.00019725,2]
[349821217,1737451849589,-500.0,0.00019725,2]
[349821218,1737451849600,-500.0,0.00019725,2]
[349821219,1737451849610,-500.0,0.00019725,2]
[349821220,1737451849620,-500.0,0.00019725,2]
[349821221,1737451849743,-530.46,0.00019725,2]
[349821222,1737451849754,-500.0,0.00019725,2]
[349821223,1737451849764,-1180.87,0.00019725,2]
[349821224,1737451849773,-499.08707266,0.00019725,2]
[349821225,1737451849783,-500.0,0.00019725,2]
[349821226,1737451849793,-500.0,0.00019725,2]
[349821227,1737451849802,-500.0,0.00019725,2]
[349821228,1737451849811,-500.0,0.00019725,2]
[349821229,1737451849821,-524.17835608,0.00019725,2]
[349821230,1737451849831,-1000.0,0.00019725,2]
[349821231,1737451849840,-514.06866692,0.00019725,2]
[349821232,1737451849850,-1042.35,0.00019725,2]